{"text_format":"1","workbook":"xlsx","n_sheets":1,"sheets":["Hoja1"],"not_rendered":{"charts":0,"images":0,"macros":1,"external_links":0,"defined_names":0,"comments":0,"pivot_tables":0},"unopened":[],"bounds":{"document_bytes":16777216,"sheet_cells":100000,"rows_first":2000,"rows_last":500,"rows_between":2000,"halvings":0,"cell_chars":16384,"cell_head_chars":4096},"cells_cut":0,"cells_raw":0,"read":"whole","date_system":"1900"}

{"sheet":"Hoja1","index":0,"n_rows":29,"n_cols":22,"rows_kept":29,"cut":false,"hidden":false,"merged":[[1,14,1,15],[1,16,1,17],[0,12,0,21],[2,14,2,15],[1,21,2,21],[1,20,2,20],[2,16,2,17],[2,18,2,19],[1,18,1,19],[1,12,2,13],[0,1,0,10],[1,3,1,4],[2,3,2,4],[2,5,2,6],[1,5,1,6],[2,7,2,8],[2,9,2,10],[1,7,1,8],[1,9,1,10],[1,1,2,2]]}
[null,"SENTIDO DE INICIATIVA E ESPIRITO EMPRENDEDOR - 1º PRIMARIA",null,null,null,null,null,null,null,null,null,null,"SENTIDO DE INICIATIVA E ESPIRITO EMPRENDEDOR - 1º PRIMARIA"]
[null,"1º A",null,"C. DA NATUREZA",null,"CIENCIAS SOCIAIS",null,"ED. FÍSICA",null,"E. PLÁSTICA",null,null,"1º A",null,"L. CASTELÁ",null,"L. GALEGA",null,"MATEMÁTICAS",null,"NOTA MEDIA","CUALIFICACIÓN"]
[null,null,null,"1º-CNB1.1.2 - Manifesta certa autonomía na observación e na planificación de accións e tarefas e ten iniciativa na toma de decisións.",null,"1º-CSB1.1.2 - Manifesta autonomía na planificación e execución de accións e tarefas coidando a súa presentación, ten iniciativa na toma de decisións e asume responsabilidades.",null,"1º-EFB1.3.2 - Demostra certa autonomía resolvendo problemas motores.",null,"1º-EPB2.2.2 - Elabora portadas, colaxes e outros obxectos empregando as ferramentas e as técnicas básicas (recortar, pegar, encher; usar pinceis, rotuladores, lapis de cores etc.).",null,null,null,null,"1º-LCB.1.9.1 - Narra situacións e experiencias persoais sinxelas.",null,"1º-LGB3.1.2 - Elabora pequenos textos con certa coherencia e de xeito creativo.",null,"1º-MTB3.6.2 - Reflexiona sobre o proceso seguido na resolución de problemas revisando as operacións utilizadas e as unidades dos resultados."]
[null,null,"ALUMNO /A","Nota",0.2,"Nota",0.2,"Nota",0.1,"Nota",0.1,null,null,"ALUMNO /A","Nota",0.1,"Nota",0.1,"Nota",0.2,1]
[null,1,null,null,{"$f":"D5*0.2","v":0},null,{"$f":"F5*0.2","v":0},null,{"$f":"H5*0.1","v":0},null,{"$f":"J5*0.1","v":0},null,1,null,null,{"$f":"O5*0.1","v":0},null,{"$f":"Q5*0.1","v":0},null,{"$f":"S5*0.2","v":0},{"$f":"SUM(T5,R5,P5,K5,I5,G5,E5,)","v":0},{"$f":"IF(U5<5,\"INSUFICIENTE\",IF(U5<6,\"SUFICIENTE\",IF(U5<7,\"BIEN\",IF(U5<9,\"NOTABLE\",\"SOBRESALIENTE\"))))","v":"INSUFICIENTE"}]
[null,2,null,null,{"$f":"D6*0.2","v":0},null,{"$f":"F6*0.2","v":0},null,{"$f":"H6*0.1","v":0},null,{"$f":"J6*0.1","v":0},null,2,null,null,{"$f":"O6*0.1","v":0},null,{"$f":"Q6*0.1","v":0},null,{"$f":"S6*0.2","v":0},0,{"$f":"IF(U6<5,\"INSUFICIENTE\",IF(U6<6,\"SUFICIENTE\",IF(U6<7,\"BIEN\",IF(U6<9,\"NOTABLE\",\"SOBRESALIENTE\"))))","v":"INSUFICIENTE"}]
[null,3,null,null,0,null,0,null,0,null,0,null,3,null,null,0,null,0,null,0,0,"INSUFICIENTE"]
[null,4,null,null,0,null,0,null,0,null,0,null,4,null,null,0,null,0,null,0,0,"INSUFICIENTE"]
[null,5,null,null,0,null,0,null,0,null,0,null,5,null,null,0,null,0,null,0,0,"INSUFICIENTE"]
[null,{"$f":"B9+1","v":6},null,null,0,null,0,null,0,null,0,null,{"$f":"M9+1","v":6},null,null,0,null,0,null,0,0,"INSUFICIENTE"]
[null,{"$f":"B10+1","v":7},null,null,0,null,0,null,0,null,0,null,{"$f":"M10+1","v":7},null,null,0,null,0,null,0,0,"INSUFICIENTE"]
[null,8,null,null,0,null,0,null,0,null,0,null,8,null,null,0,null,0,null,0,0,"INSUFICIENTE"]
[null,9,null,null,0,null,0,null,0,null,0,null,9,null,null,0,null,0,null,0,0,"INSUFICIENTE"]
[null,10,null,null,0,null,0,null,0,null,0,null,10,null,null,0,null,0,null,0,0,"INSUFICIENTE"]
[null,11,null,null,0,null,0,null,0,null,0,null,11,null,null,0,null,0,null,0,0,"INSUFICIENTE"]
[null,12,null,null,0,null,0,null,0,null,0,null,12,null,null,0,null,0,null,0,0,"INSUFICIENTE"]
[null,13,null,null,0,null,0,null,0,null,0,null,13,null,null,0,null,0,null,0,0,"INSUFICIENTE"]
[null,14,null,null,0,null,0,null,0,null,0,null,14,null,null,0,null,0,null,0,0,"INSUFICIENTE"]
[null,15,null,null,0,null,0,null,0,null,0,null,15,null,null,0,null,0,null,0,0,"INSUFICIENTE"]
[null,16,null,null,0,null,0,null,0,null,0,null,16,null,null,0,null,0,null,0,0,"INSUFICIENTE"]
[null,17,null,null,0,null,0,null,0,null,0,null,17,null,null,0,null,0,null,0,0,"INSUFICIENTE"]
[null,18,null,null,0,null,0,null,0,null,0,null,18,null,null,0,null,0,null,0,0,"INSUFICIENTE"]
[null,19,null,null,0,null,0,null,0,null,0,null,19,null,null,0,null,0,null,0,0,"INSUFICIENTE"]
[null,20,null,null,0,null,0,null,0,null,0,null,20,null,null,0,null,0,null,0,0,"INSUFICIENTE"]
[null,21,null,null,0,null,0,null,0,null,0,null,21,null,null,0,null,0,null,0,0,"INSUFICIENTE"]
[null,22,null,null,0,null,0,null,0,null,0,null,22,null,null,0,null,0,null,0,0,"INSUFICIENTE"]
[null,23,null,null,0,null,0,null,0,null,0,null,23,null,null,0,null,0,null,0,0,"INSUFICIENTE"]
[null,24,null,null,0,null,0,null,0,null,0,null,24,null,null,0,null,0,null,0,0,"INSUFICIENTE"]
[null,25,null,null,0,null,0,null,0,null,0,null,25,null,null,0,null,0,null,0,0,"INSUFICIENTE"]